Cogmind - Beta 13 @@@ ROGUE MODE // 2024.04.27 @ 02:18:09 Player: Person Guy Result: Destroyed by Y-54 Guardian with Flak Gun Performance ------------- Evolutions (3) 1500 Regions Visited (8) 1600 Robots Destroyed (46) 230 Value Destroyed (1325) 1325 Prototype IDs (12) 240 Alien Tech Used (0) 0 Bonus (410) 410 TOTAL SCORE: 5305 Bonus ------- Follower Combat Kills 110 Aligned with FarCom 300 Cogmind --------- Core Integrity 0/700 Matter 198/300 Energy 100/100 System Corruption 14% Temperature Cool (12) Movement Core (100) Ox1 Location -7/Factory Parts ------- > --- POWER (1) -------- (None) > --- PROPULSION (4) --- (None) > --- UTILITY (6) ------ Coolant Injector Utility Shielding System Shield > --- WEAPON (2) ------- Heavy Assault Rifle > --- INVENTORY (5) ---- Heavy Rocket Launcher Scythe Peak State ------------ > --- POWER ------------ Micro Nuclear Core > --- PROPULSION ------- Aerolev Unit Cooled Airjet Cooled Airjet Cooled Airjet > --- UTILITY ---------- Coolant Injector Improved Weapon Shielding Hacking Suite Hacking Suite System Shield System Shield > --- WEAPON ----------- Heavy Laser Minigun > --- INVENTORY -------- Light Nuclear Core System Shield Rocket Launcher Power Maul [Rating: 50] Favorites ----------- Power Heavy Ion Engine Engine Heavy Ion Engine Power Core Micro Nuclear Core Propulsion Improved Titanium Leg Treads Improved Treads Leg Improved Titanium Leg Hover Unit Cooled Airjet Flight Unit Xenon Bombardment Thruster Utility System Shield Device Improved Heat Sink Storage Large Storage Unit Hackware System Shield Protection Hardened Light Armor Plating Weapon Heavy Laser Energy Gun Heavy Laser Ballistic Gun Light Assault Rifle Ballistic Cannon Advanced Assault Cannon Launcher Heavy Rocket Launcher Impact Weapon Power Maul Slashing Weapon Scythe Build | -11 -10 -10 -10 -9 -8 -7 -7 -7 ------- Run | Yrd Mat Min Exi Min Mat Fac Was Fac Slots Evolved 6 | . . . . . 4 2 . . Power . | . . . . . . . . . Propulsion 2 | . . . . . 2 . . . Utility 4 | . . . . . 2 2 . . Weapon . | . . . . . . . . . Parts Attached 65 | . 14 5 1 . 12 4 . 29 Power 7 | . 3 . . . 1 . . 3 Engine 5 | . 3 . . . 1 . . 1 Core 2 | . . . . . . . . 2 Reactor . | . . . . . . . . . Propulsion 26 | . 7 2 . . 6 . . 11 Treads 11 | . 7 2 . . 2 . . . Leg 4 | . . . . . 4 . . . Wheel . | . . . . . . . . . Hover 6 | . . . . . . . . 6 Flight 5 | . . . . . . . . 5 Utility 18 | . 4 . 1 . 2 4 . 7 Device 4 | . . . 1 . 1 . . 2 Storage 2 | . 2 . . . . . . . Processor . | . . . . . . . . . Hackware 5 | . . . . . . 4 . 1 Protection 7 | . 2 . . . 1 . . 4 Artifact . | . . . . . . . . . Weapon 14 | . . 3 . . 3 . . 8 Energy Gun 2 | . . . . . 1 . . 1 Energy Cannon . | . . . . . . . . . Ballistic Gun 8 | . . 3 . . 2 . . 3 Ballistic Cannon 1 | . . . . . . . . 1 Launcher 1 | . . . . . . . . 1 Special Weapon . | . . . . . . . . . Impact Weapon 1 | . . . . . . . . 1 Slashing Weapon 1 | . . . . . . . . 1 Piercing Weapon . | . . . . . . . . . Special Melee Weapon . | . . . . . . . . . Unidentified Prototypes 5 | . 1 . 1 . . . . 3 Parts Lost 19 | . . 4 . . . . 1 14 Power 1 | . . . . . . . . 1 Propulsion 6 | . . 1 . . . . . 5 Utility 6 | . . 1 . . . . . 5 Weapon 6 | . . 2 . . . . 1 3 Highest Loss Streak 7 | . . 2 . . . . 1 7 To Critical Strikes . | . . . . . . . . . Average Slot Usage (%) 85 | . 94 94 85 85 87 100 94 78 Engine 7 | . 13 14 14 14 9 7 7 3 Core 1 | . . . . . . . . 2 Treads 10 | . 24 27 28 28 5 . . . Leg 10 | . 3 . . . 29 30 27 9 Hover 2 | . . . . . . . . 5 Flight 2 | . . . . . . . . 5 Device 4 | . . . . . 7 7 7 6 Storage 7 | . 14 14 14 14 9 7 7 3 Hackware 12 | . . . . . . 30 30 23 Protection 5 | . 12 11 . . 8 . . 4 Energy Gun 5 | . 14 2 . . 7 7 4 3 Ballistic Gun 10 | . 11 23 28 28 10 7 7 3 Naked Turns . | . . . . . . . . . Heaviest Build 46 | 11 36 36 30 30 41 36 36 46 Greatest Support 92 | 20 46 46 46 46 92 80 80 60 Greatest Overweight (x) 8 | . 8 . . . . . . 5 Average Overweight (x) . | . . . . . . . . . Largest Inventory Capacity 15 | 8 15 15 15 15 15 15 15 15 Average Capacity 12 | 8 13 15 15 15 15 15 15 9 Most Carried 15 | 5 14 12 10 10 15 13 10 13 Average Carried 8 | 4 8 10 9 9 12 9 10 6 Final Capacity 15 | 8 15 15 15 15 15 15 15 5 Final Carried 13 | 3 12 9 9 10 13 10 10 2 Class Distribution -------------------- 55% | Mutant 37% | Hacker-Mutant 6% | Hacker-Sprinter Dominant Class ---------------- Mutant | -10/Materials Mutant | -10/Mines Mutant | -10/Exiles Mutant | -9/Mines Mutant | -8/Materials Hacker-Mutant | -7/Factory Hacker-Mutant | -7/Waste Hacker-Mutant | -7/Factory Resources | -11 -10 -10 -10 -9 -8 -7 -7 -7 ----------- Run | Yrd Mat Min Exi Min Mat Fac Was Fac Matter Collected 1291 | 191 233 121 . 10 171 . . 565 Remotely . | . . . . . . . . . Salvage Created 1585 | . 531 115 . . 206 . . 733 Parts 92 | . 29 8 . . 12 . . 43 Haulers Intercepted 3 | . 1 . . . . . . 2 Recyclers Shooed 2 | . 1 . . . . . . 1 Parts Field Recycled . | . . . . . . . . . Retrieved Matter . | . . . . . . . . . Parts Self-Destructed . | . . . . . . . . . Prevented . | . . . . . . . . . Kills | -11 -10 -10 -10 -9 -8 -7 -7 -7 ------- Run | Yrd Mat Min Exi Min Mat Fac Was Fac Combat Hostiles Destroyed 33 | . 11 4 . . 4 . . 14 Melee 5 | . . . . . . . . 5 Guns 22 | . 11 4 . . 4 . . 3 Cannons 3 | . . . . . . . . 3 AOE 1 | . . . . . . . . 1 Classes Destroyed 12 | . 6 . . . 2 . . 4 Worker 2 | . 1 . . . . . . 1 Builder 1 | . . . . . . . . 1 Hauler 3 | . 1 . . . . . . 2 Recycler 1 | . 1 . . . . . . . Operator 4 | . 1 . . . 1 . . 2 Watcher 2 | . . . . . . . . 2 Swarmer 12 | . 5 3 . . . . . 4 Grunt 11 | . 6 1 . . 2 . . 2 Duelist 1 | . . . . . 1 . . . Sentry 4 | . . . . . 1 . . 3 Hunter 2 | . . . . . . . . 2 Programmer 3 | . . . . . . . . 3 Best Kill Streak 6 | . 6 3 . . 3 . . 4 Combat Bots Only 4 | . 4 3 . . 3 . . 4 Max Kills in Single Turn 2 | . 2 1 . . 1 . . 1 Gunslinging 1 | . 1 . . . . . . . Exploded 1 | . . . . . . . . 1 Melee 1 | . . . . . . . . 1 Uniques/NPCs Destroyed . | . . . . . . . . . Combat | -11 -10 -10 -10 -9 -8 -7 -7 -7 -------- Run | Yrd Mat Min Exi Min Mat Fac Was Fac Hostile Shots Fired 472 | . 43 59 . . 33 . 1 336 Missed 136 | . 15 8 . . 11 . . 102 Damage Taken 3732 | . 342 546 . . 370 . 32 2442 Core 834 | . 51 50 . . 29 . 32 672 Absorbed by Shields . | . . . . . . . . . Redirected to Shielding 93 | . . . . . . . . 93 Core Remaining (%) 84 | 100 . . . 59 94 . . . Volleys Fired 119 | . 28 27 . . 16 . . 48 Largest 2 | . 2 2 . . 2 . . 2 Hottest 117 | . 60 60 . . 94 . . 117 Shots Fired 229 | . 56 52 . . 32 . . 89 Gun 208 | . 56 52 . . 32 . . 68 Cannon 18 | . . . . . . . . 18 Launcher 3 | . . . . . . . . 3 Special . | . . . . . . . . . Kinetic 144 | . 28 45 . . 20 . . 51 Thermal 82 | . 28 7 . . 12 . . 35 Explosive 3 | . . . . . . . . 3 Electromagnetic . | . . . . . . . . . Robot Hit Streak 15 | . 8 11 . . 6 . . 15 Robot Miss Streak 5 | . 3 5 . . 2 . . 5 Penetration Max . | . . . . . . . . . Secondary Targets 4 | . 3 1 . . . . . . Max Gunslinging Chain 1 | . 1 1 . . . . . . Shots Hit Robots 174 | . 38 35 . . 22 . . 79 Core Hits 77 | . 23 9 . . 11 . . 34 Critical Kills 1 | . 1 . . . . . . . Critical Parts Destroyed 2 | . . . . . . . . 2 Critical Strikes 8 | . 1 . . . 1 . . 6 Burn 3 | . . . . . 1 . . 2 Destroy 1 | . 1 . . . . . . . Smash 2 | . . . . . . . . 2 Sever 2 | . . . . . . . . 2 Melee Attacks 24 | . . . . . . . . 24 Impact 9 | . . . . . . . . 9 Slashing 15 | . . . . . . . . 15 Piercing . | . . . . . . . . . Sneak Attacks 1 | . . . . . . . . 1 Combat Hostiles . | . . . . . . . . . Follow-up Attacks 3 | . . . . . . . . 3 Damage Inflicted 3388 | . 447 349 . . 369 . . 2223 Guns 2009 | . 447 349 . . 369 . . 844 Cannons 383 | . . . . . . . . 383 Explosions 239 | . . . . . . . . 239 Melee 722 | . . . . . . . . 722 Ramming 35 | . . . . . . . . 35 Kinetic 1395 | . 223 318 . . 178 . . 676 Thermal 997 | . 224 31 . . 191 . . 551 Explosive 239 | . . . . . . . . 239 Electromagnetic . | . . . . . . . . . Impact 323 | . . . . . . . . 323 Slashing 399 | . . . . . . . . 399 Piercing . | . . . . . . . . . Highest Corruption 14 | . . . . . . . . 14 Average Corruption 10 | . . . . . . . . 10 Corruption Purged . | . . . . . . . . . Corruption Blocked . | . . . . . . . . . Effects 52 | . . . . . . . . 52 Message Errors 11 | . . . . . . . . 11 Matter Fused 16 | . . . . . . . . 16 Heat Flow Errors 5 | . . . . . . . . 5 Energy Discharges 9 | . . . . . . . . 9 Parts Rejected 2 | . . . . . . . . 2 Parts Fused 1 | . . . . . . . . 1 Data Loss (minor) 1 | . . . . . . . . 1 Data Loss (major) 4 | . . . . . . . . 4 Misfires 1 | . . . . . . . . 1 Weapon Failures 2 | . . . . . . . . 2 Overload Shots . | . . . . . . . . . Overflow Damage 245 | . . . . . . . . 245 Projectiles 42 | . . . . . . . . 42 Explosions 10 | . . . . . . . . 10 Melee 193 | . . . . . . . . 193 Knockbacks 3 | . . . . . . . . 3 Impact 1 | . . . . . . . . 1 Kinetic 2 | . . . . . . . . 2 Secondary . | . . . . . . . . . Self-Inflicted Damage 155 | . . . . . . . . 155 Shots 3 | . . . . . . . . 3 Rammed 2 | . . . . . . . . 2 Targets Rammed 4 | . . . . . . . . 4 Kicked 2 | . . . . . . . . 2 Crushed . | . . . . . . . . . Highest Temperature 189 | . 171 116 . . 100 . . 189 Average Temperature 40 | . 56 35 . . 35 . . 36 Received Heat Transfer 843 | . 57 174 . . 171 . . 441 Siege Activations . | . . . . . . . . . Robots Corrupted . | . . . . . . . . . Combat Hostiles . | . . . . . . . . . Parts Fried 1 | . . . . . . . . 1 Impact Corruptions 6 | . . . . . . . . 6 Robots Melted 1 | . . . . . . . . 1 Combat Hostiles 1 | . . . . . . . . 1 Parts Melted 1 | . . . . . . . . 1 Heat Transferred 2166 | . 500 75 . . 444 . . 1147 Parts Sabotaged . | . . . . . . . . . Parts Stolen . | . . . . . . . . . Parts Stripped . | . . . . . . . . . Power Chain Reactions . | . . . . . . . . . Alert | -11 -10 -10 -10 -9 -8 -7 -7 -7 ------- Run | Yrd Mat Min Exi Min Mat Fac Was Fac Peak Influence 262 | . 201 88 . . 85 38 15 262 Initial 38 | . . 28 . . . 38 13 3 Average 67 | . 75 64 . . 52 38 8 79 Maximum Alert Level 1 | . 1 . . . . . . 1 Low Security (%) 93 | 100 85 100 . 100 100 100 100 92 Level 1 6 | . 14 . . . . . . 7 Level 2 . | . . . . . . . . . Level 3 . | . . . . . . . . . Level 4 . | . . . . . . . . . Level 5 . | . . . . . . . . . High Security . | . . . . . . . . . Max Security . | . . . . . . . . . Squads Dispatched 11 | . 2 . . . . . . 9 Investigation 4 | . 1 . . . . . . 3 Extermination 3 | . . . . . . . . 3 Reinforcement 4 | . 1 . . . . . . 3 Assault . | . . . . . . . . . Garrison . | . . . . . . . . . Intercept . | . . . . . . . . . Searches Triggered . | . . . . . . . . . Construction Impeded . | . . . . . . . . . Haulers Reinforced . | . . . . . . . . . Active Scanning Responses . | . . . . . . . . . Cargo Convoy Interrupts . | . . . . . . . . . Stealth | -11 -10 -10 -10 -9 -8 -7 -7 -7 --------- Run | Yrd Mat Min Exi Min Mat Fac Was Fac Distress Signals 4 | . 2 . . . . . . 2 Communications Jammed . | . . . . . . . . . Distress Signals . | . . . . . . . . . Times Spotted 77 | . 22 5 . . 7 . 6 37 Peak Tracking Total 6 | . 6 3 . . 3 . 6 5 Tactical Retreats 4 | . 2 . . . . . . 2 Traps | -11 -10 -10 -10 -9 -8 -7 -7 -7 ------- Run | Yrd Mat Min Exi Min Mat Fac Was Fac Traps Triggered 8 | . 6 . . . . 1 . 1 Indirectly . | . . . . . . . . . Trap Hack Attempts . | . . . . . . . . . Triggered . | . . . . . . . . . Disarmed . | . . . . . . . . . Reprogrammed . | . . . . . . . . . Reused . | . . . . . . . . . Traps Extracted . | . . . . . . . . . Installed . | . . . . . . . . . Triggered . | . . . . . . . . . Machines | -11 -10 -10 -10 -9 -8 -7 -7 -7 ---------- Run | Yrd Mat Min Exi Min Mat Fac Was Fac Machines Disabled . | . . . . . . . . . Max in Single Turn . | . . . . . . . . . Machines Repaired . | . . . . . . . . . Machines Dismantled . | . . . . . . . . . Machines Sabotaged . | . . . . . . . . . Overloaded Fab Kills . | . . . . . . . . . Hacking | -11 -10 -10 -10 -9 -8 -7 -7 -7 --------- Run | Yrd Mat Min Exi Min Mat Fac Was Fac Machines Accessed 24 | . 6 . . . 3 . . 15 Terminals 16 | . 6 . . . 2 . . 8 Fabricators 3 | . . . . . . . . 3 Repair Stations . | . . . . . . . . . Recycling Units . | . . . . . . . . . Scanalyzers 1 | . . . . . . . . 1 Garrison Access 4 | . . . . . 1 . . 3 Total Hacks 72 | . 18 . . . 6 . . 48 Successful 24 | . 7 . . . 2 . . 15 Failed 48 | . 11 . . . 4 . . 33 Catastrophic 9 | . 2 . . . 1 . . 6 Database Lockouts . | . . . . . . . . . Manual 14 | . 7 . 1 . 1 . . 5 Terminals 52 | . 18 . . . 4 . . 30 Fabricators 6 | . . . . . . . . 6 Repair Stations . | . . . . . . . . . Recycling Units . | . . . . . . . . . Scanalyzers 5 | . . . . . . . . 5 Garrison Access 9 | . . . . . 2 . . 7 Terminal Hacks 14 | . 6 . . . 1 . . 7 Prototype ID Bank 3 | . 1 . . . 1 . . 1 Emergency Access Points 1 | . 1 . . . . . . . Terminal Index 1 | . . . . . . . . 1 Alert Level 4 | . 2 . . . . . . 2 Unreport Threat 2 | . . . . . . . . 2 Locate Traps 2 | . 1 . . . . . . 1 Hauler Manifests 1 | . 1 . . . . . . . Fabricator Hacks 3 | . . . . . . . . 3 Network Status 1 | . . . . . . . . 1 Build 2 | . . . . . . . . 2 Repair Station Hacks . | . . . . . . . . . Recycling Unit Hacks . | . . . . . . . . . Scanalyzer 4 | . . . . . . . . 4 Insert Component 2 | . . . . . . . . 2 Analyze 2 | . . . . . . . . 2 Garrison Access Hacks 1 | . . . . . 1 . . . Unlock Access 1 | . . . . . 1 . . . Unauthorized Hacks 2 | . 1 . . . . . . 1 Terminals 2 | . 1 . . . . . . 1 Operators 2 | . 1 . . . . . . 1 Fabricators . | . . . . . . . . . Repair Stations . | . . . . . . . . . Recycling Units . | . . . . . . . . . Scanalyzers . | . . . . . . . . . Garrison Access . | . . . . . . . . . Data Cores Recovered 1 | . . . . . 1 . . . Used . | . . . . . . . . . Hacking Detections 20 | . 6 . . . 3 . . 11 Full Trace Events 3 | . . . . . . . . 3 Feedback Events 1 | . . . . . . . . 1 Hackware Fried 1 | . . . . . . . . 1 Feedback Blocked . | . . . . . . . . . Robot Schematics Acquired . | . . . . . . . . . Robots Built 2 | . . . . . . . . 2 Authchips . | . . . . . . . . . Time 134 | . . . . . . . . 134 Total Robot Build Rating 8 | . . . . . . . . 8 Part Schematics Acquired 2 | . . . . . . . . 2 Parts Built 2 | . . . . . . . . 2 Authchips . | . . . . . . . . . Time 84 | . . . . . . . . 84 Total Part Build Rating 8 | . . . . . . . . 8 Parts Repaired . | . . . . . . . . . Time . | . . . . . . . . . Parts Recycled . | . . . . . . . . . Recycled Matter . | . . . . . . . . . Retrieved Matter . | . . . . . . . . . Retrieved Components . | . . . . . . . . . Parts Scanalyzed 2 | . . . . . . . . 2 Part Schematics Acquired 2 | . . . . . . . . 2 Parts Damaged . | . . . . . . . . . Bothacking | -11 -10 -10 -10 -9 -8 -7 -7 -7 ------------ Run | Yrd Mat Min Exi Min Mat Fac Was Fac Used RIF Installer . | . . . . . . . . . Robots Hacked . | . . . . . . . . . Non-combat . | . . . . . . . . . Combat . | . . . . . . . . . Robot Hacks Applied . | . . . . . . . . . Relay Couplers Released . | . . . . . . . . . Fabnet Peak Effective % . | . . . . . . . . . Robots Rewired . | . . . . . . . . . Allies Hacked . | . . . . . . . . . Hacks Repelled . | . . . . . . . . . Allies | -11 -10 -10 -10 -9 -8 -7 -7 -7 -------- Run | Yrd Mat Min Exi Min Mat Fac Was Fac Total Allies 4 | . . . . 1 . . 1 2 Largest Group 2 | . . . . 1 1 . 1 2 Highest-Rated Group 64 | . . . . 31 31 . 31 64 Highest-Rated Ally 32 | . . . . 31 31 . 31 32 Total Orders . | . . . . . . . . . Ally Attacks 32 | . . . . . 5 . 14 13 Total Damage 693 | . . . . . 105 . 190 398 Kills 8 | . . . . . 1 . . 7 Allies Corrupted . | . . . . . . . . . Allies Melted . | . . . . . . . . . Intel | -11 -10 -10 -10 -9 -8 -7 -7 -7 ------- Run | Yrd Mat Min Exi Min Mat Fac Was Fac Robot Analysis Total . | . . . . . . . . . Derelict Logs Recovered . | . . . . . . . . . Drone Launches . | . . . . . . . . . Drone Recoveries . | . . . . . . . . . Exploration | -11 -10 -10 -10 -9 -8 -7 -7 -7 ------------- Run | Yrd Mat Min Exi Min Mat Fac Was Fac Turns Passed 5165 | 2 884 484 350 183 578 142 142 2400 Spaces Moved 4064 | 1 483 241 218 91 347 106 109 2468 Core 602 | . 1 . . . . . . 601 Treads 1005 | . 409 241 218 91 46 . . . Legs 1136 | 1 73 . . . 301 106 109 546 Wheels . | . . . . . . . . . Hover 379 | . . . . . . . . 379 Flight 942 | . . . . . . . . 942 Fastest Speed 29 | 120 120 160 160 160 130 130 130 29 Average Speed 94 | 120 155 160 160 160 133 130 130 59 Slowest Speed 450 | 120 450 160 160 160 160 130 130 350 Overloaded Moves . | . . . . . . . . . Propulsion Burnouts . | . . . . . . . . . Robots Hopped 8 | . . . . . . . . 8 Cave-ins Triggered . | . . . . . . . . . Exploration Rate (%) 41 | 2 81 46 62 10 27 4 74 63 Regions Visited 8 Branch Regions 3 Pre-discovered Areas 1 | . . 1 . . . . . . Known Exits Taken . | . . . . . . . . . Unknown Exits Taken 6 | 1 1 1 1 1 1 . . . Scrap Searched 1 | . . . . 1 . . . . Spaces Dug . | . . . . . . . . . Terrain Destroyed 25 | . . . . . . . . 25 Melee . | . . . . . . . . . Projectile 1 | . . . . . . . . 1 AOE 24 | . . . . . . . . 24 Terrain Rammed . | . . . . . . . . . Walls Destroyed . | . . . . . . . . . Machines Disabled . | . . . . . . . . . Actions | -11 -10 -10 -10 -9 -8 -7 -7 -7 --------- Run | Yrd Mat Min Exi Min Mat Fac Was Fac Total 5151 | 3 566 292 220 129 437 112 109 3283 Wait 753 | . 6 17 . 38 31 . 1 660 Move 4041 | . 482 240 217 90 346 106 108 2452 Hop 8 | . . . . . . . . 8 Pick Up 79 | . 25 2 1 1 19 1 . 30 Fast Attach . | . . . . . . . . . Attach 63 | . 12 5 1 . 12 4 . 29 Detach 3 | . . . . . 1 . . 2 Swap 2 | . 2 . . . . . . . Drop 58 | 3 11 1 1 . 12 1 . 29 Fire 119 | . 28 27 . . 16 . . 48 Melee 21 | . . . . . . . . 21 Ram 2 | . . . . . . . . 2 Kick 2 | . . . . . . . . 2 Crush . | . . . . . . . . . Escape Stasis . | . . . . . . . . . Rewire . | . . . . . . . . . Trap . | . . . . . . . . . Miscellaneous . | . . . . . . . . . Route ------- -11/Scrapyard -10/Materials (discovered 5 exits: [*Mat x3] / [*Min x2]) -10/Mines (discovered 3 exits: [*Mat x2] / *Exi) -10/Exiles -9/Mines -8/Materials (discovered 2 exits: [*Fac] / Gar) -7/Factory -7/Waste -7/Factory (discovered 4 exits: [*Fac x2] / [*Low x2]) History --------- Turn | Location | Event 3 | -11/Scrapyard | Discovered new exit (range 0) 3 | -11/Scrapyard | Entered Materials 147 | -10/Materials | Discovered new exit (range 6) 313 | -10/Materials | Build established: Mutant 410 | -10/Materials | Discovered new exit (range 4) 502 | -10/Materials | Discovered new exit (range 10) 580 | -10/Materials | Discovered new exit (range 16) 694 | -10/Materials | Discovered new exit (range 12) 887 | -10/Materials | Entered Mines 888 | -10/Mines | Learned location of Storage (-7) 1152 | -10/Mines | Discovered new exit (range 9) 1248 | -10/Mines | Discovered new exit (range 8) 1363 | -10/Mines | Deemed a non-threat by the Exiles lab entrance 1364 | -10/Mines | Discovered new exit (range 5) 1371 | -10/Mines | Entered Exiles 1411 | -10/Exiles | Met 8R-AWN 1437 | -10/Exiles | Met EX-HEX 1482 | -10/Exiles | Met EX-BIN 1501 | -10/Exiles | Aligned with FarCom system 1503 | -10/Exiles | Given EX-Vault access code 1544 | -10/Exiles | Opened EX-Vault 1554 | -10/Exiles | Found Prototype Device 1555 | -10/Exiles | Identified Chronowheel 1555 | -10/Exiles | Activated Chronowheel 1592 | -10/Exiles | Warned to stay clear of 0b10 Research branches 1612 | -10/Exiles | Exiles lab attacked by MAIN.C 1707 | -10/Exiles | Discovered new exit (range 11) 1721 | -10/Exiles | Entered Mines 1721 | -9/Mines | Discovered new exit (range 4) 1724 | -9/Mines | Received a Mining Laser from a helpful Derelict 1904 | -9/Mines | Entered Materials 1904 | -8/Materials | Accompanied by 1 ally 1904 | -8/Materials | Evolved 4 slots: Propulsion x2, Utility x2 2243 | -8/Materials | Identified exit to Garrison 2423 | -8/Materials | Discovered new exit (range 5) 2482 | -8/Materials | Entered Factory 2482 | -7/Factory | Evolved 2 slots: Utility x2 2624 | -7/Factory | Sucked down chute 2624 | -7/Factory | Entered Waste 2625 | -7/Waste | Met a frightened Derelict 2654 | -7/Waste | Spotted C-40 Crusher 2675 | -7/Waste | Spotted C-40 Crusher 2682 | -7/Waste | Spotted C-40 Crusher 2706 | -7/Waste | Spotted C-40 Crusher 2708 | -7/Waste | Spotted C-40 Crusher 2714 | -7/Waste | Spotted C-40 Crusher 2719 | -7/Waste | Crushed by Compactor (1 part destroyed, 1 dropped) 2746 | -7/Waste | Discovered new exit (range 15) 2766 | -7/Waste | Entered Factory 2792 | -7/Factory | Build established: Hacker-Mutant 3407 | -7/Factory | Fabricated Rnf. Deuterium Engine (x2) 3595 | -7/Factory | Discovered new exit (range 14) 4011 | -7/Factory | Fabricated Y-54 Guardian (x2) 4452 | -7/Factory | Discovered new exit (range 10) 4476 | -7/Factory | Discovered new exit (range 11) 4486 | -7/Factory | System Shield fried by hacking feedback 4641 | -7/Factory | Build established: Hacker-Sprinter 4721 | -7/Factory | Core integrity fell below 50% 4754 | -7/Factory | Discovered new exit (range 9) 4764 | -7/Factory | Lost 7 parts (1p4n1u1w) 4773 | -7/Factory | System corruption reached 10% 5066 | -7/Factory | Build established: Mutant 5125 | -7/Factory | Core integrity fell below 20% 5166 | -7/Factory | Destroyed by Y-54 Guardian with Flak Gun Last Messages --------------- 05054_ System corrupted: Matter fused (-10). 05092_ System corrupted: Energy discharge (-25). 05103_ Connecting with Terminal... 05110_ O-24 Administrator: "IFF HANDSHAKE FAILED. SECURING TERMINAL." 05115_ O-24 Administrator uses terminal to summon reinforcements. 05115_ ALERT: Hostiles spotted, dispatching reinforcements to Terminal F015. 05115_ O-24 Administrator locks terminal. 05120_ System corrupted: Energy discharge (-29). 05139_ System corrupted: FCS attempts to trigger Hvy. Assault Rifle. 05139_ System corrupted: Hvy. Assault Rifle misfires. 05147_ System corrupted: Hvy. Assault Rifle jammed. 05156_ Hvy. Assault Rifle destroyed. 05163_ 67|LAVG X#0RU8RFJO5>MGLYI9JIQHT Map ----- +----------------------------------------------------+ | ?????????????????????????????????????????????????? | | ?????????????????????????????????????????????????? | | ?????????????????????????????????????????????????? | | ?????????????????????????????????????????????????? | | ?????????????????????????????????????????????????? | | ?????????????????????????????????????????????????? | | ?????????????????????????????????????????????????? | | ?????????????????????????????????????????????????? | | ?????????????????????????????????????????????????? | | ?????????????????????????????????????????????????? | | ?????????????????????????????????????????????????? | | ????????????????##??#????????????????????????????? | | ???????????????? ? ????????????????????????????? | | ????????????????] ?T ????????????????????????????? | | ???????????????? ? ???#######??????????????????? | | ????????????????! ? ??? #??????????????????? | | ???????????????# #?? ???????????????????? | | ???????????????# #?" ???????????????????? | | ???????????????# """ #"" ????????????????????? | | ???????????????# """ #""" ????????????????o???? | | ???????????????# """ #?"" ?????????????????????? | | ???????????????# #?"" ?????????????????????? | | ???????????????# #?? ??????????????????????? | | ???????????????# #?? ????Y?????????????????? | | ??????????????##+###+####/########???????????????? | | ??????????????# @ ????????? | | ??????????????# ????????? | | ??????????????+ Y k ????????? | | ??????????????# #################+####?????????? | | ?????????#+#?## ##?????????????????????????????? | | #?######## #?# #?????????????????????????????? | | ## ### "" #?????????????????????????????? | | " " ## T +?????????????????????????????? | | " " ## ### #?????????????????????????????? | | " " ## #?# #?????????????????????????????? | | " " ## #?#######?????????????????????????????? | | " " ! ## #?????##??????????????????????????????? | | " " ## #???## ##?????????????????????????????? | | " " ## #??* ?????????????????????????????? | | " " ## #?? """??????????????????????????????? | | " " ## #?! """??????????????????????????????? | | !! ## #? """ #????????????????????????????? | | !] ## # ?????????????????????????????? | | ##+####### # """ #????????????????????????????? | | ^ / "R #????????????????????????????? | | ##### # """ /] #????????????????????????????? | | #???# # ]] ?????????????????????????????? | | #####+#########?????????????????????????????? | | # #??????????????????????????????? | | # " " " " " #??????????????????????????????? | +----------------------------------------------------+ Best States ------------- Heat Dissipation 48 Coolant Potential 65 Energy Generation 16 Energy Capacity 290 Matter Stores 300 Matter Capacity 300 Sight Range 16 Terrain Scan Density 10 Armor Coverage 150 Utility Shielding 33 Weapon Shielding 66 Evasion (%) 64 Recoil Reduction 4 Offensive Hacking 20 Defensive Hacking 20 Item Schematics ----------------- System Shield | -7/Factory | Scanalyzed Hvy. Rocket Launcher | -7/Factory | Scanalyzed Robot Schematics ------------------ None Fabricated ------------ Rnf. Deuterium Engine | x2 | -7/Factory | Preloaded Y-54 Guardian | x2 | -7/Factory | Preloaded Alien Tech Used ----------------- None Achievements -------------- None Challenges ------------ None Game ------ Seed PropulsionSubdwellerStick Manual? 0 Play Time 00:40:44 Cumulative 106.6 hours Start 2024.04.27 @ 01:39:36 End 2024.04.27 @ 02:18:09 Sessions 1 Manual Loads 0 Difficulty Rogue Special Mode None Game No. 88 Rogue 88 Adventurer 0 Explorer 0 Win Type - Total 0 Types 0/0/0/0/0/0/0/0/0 Lore% 45 Gallery% 59 Achievement% 40 Wizard Run 0 Options --------- Layout 1 ASCII 0 Keyboard 0 Movement Numpad Keybinds 0 Fullscreen 1 Font 24/Smallcaps Map View 50x35 Zoom Use 0% Tactical HUD 1 Map Filters NONE Filters NONE Steam 1 RUN: 67a9e048-db4a-4844-a501-f647c67980fd